Workbook

Sheet Income
B3: Bank Deposits | D3: =C14/6 -> 33847.285 | K3: Bank Deposits | M3: =(L14-N14)/6 -> 3982.536667
C4: Actual Deposits | D4: Less Headway Capital | G4: Average for business income: | I4: =AVERAGE(I5:I7) -> 33650.42833 | L4: Actual Deposits
B5: 2024-01-01 | C5: 12365.7 | G5: =B3 -> Bank Deposits | I5: =D3 -> 33847.285 | K5: 2024-01-01 | L5: 3147.2
B6: 2024-02-01 | C6: 41666.21 | D6: -17500 | G6: =B17 -> Schedule C, 30 202212 | I6: =D17 -> 34129 | K6: =EDATE(K5,1) -> 2024-02-01 | L6: 6587.07
B7: 2024-03-01 | C7: 33975.8 | G7: =B20 -> 433-A / SE | I7: =D20 -> 32975 | K7: =EDATE(K6,1) -> 2024-03-01 | L7: 8756.61 | M7: Best Egg Loan | N7: 5460.6
B8: 2024-04-01 | C8: 41966 | K8: 2024-04-01 | L8: 3122.42
B9: 2024-05-01 | C9: 49532 | D9: -1900 | K9: 2024-05-01 | L9: 4438.76
B10: 2024-06-01 | C10: 44478 | D10: -1500 | K10: 2024-06-01 | L10: 3303.76
K11: 2024-07-01
C12: 223983.71 | D12: -20900
C13: Total Deposits | F13: =SUM(C6:C10) -> 211618.01 | G13: =(F13+D12)/5 -> 38143.602
C14: 203083.71 | L14: =SUM(L5:L13) -> 29355.82 | N14: =SUM(N5:N13) -> 5460.6
B17: Schedule C, 30 202212 | D17: 34129
B20: 433-A / SE | D20: 32975
N26: 409548 | O26: =N26/12 -> 34129
O27: =(O26+D3)/2 -> 33988.1425

Sheet Sheet1
A3: Gross Deposits
A4: 223983.71 | E4: Annual | G4: Monthly
A5: Loans: | D5: 2023 Sch C | E5: 418970 | G5: =E5/12 -> 34914.16667
A6: -20900 | D6: P&L | F6: 188288 | G6: =F6/6 -> 31381.33333
A7: Actual Deposits | D7: Bank deposits | F7: 203083 | G7: =F7/6 -> 33847.16667
A8: 203083.71
F9: Average: | G9: =AVERAGE(G5:G7) -> 33380.88889

Sheet BusExp
C4: Sch C, 30 202212 | D4: P&L | E4: 433-A | F4: Bank Stmts | H4: Average:
B5: Payroll | C5: 13999.25 | D5: 13786.12 | F5: 13787.29 | H5: =AVERAGE(C5:G5) -> 13857.55333
B6: Material | C6: 9411.92 | D6: 11051.37 | E6: 12402 | H6: =AVERAGE(C6:G6) -> 10955.09667
B7: Insurance
